Workbook

Sheet Grundlagen
B1: Zur Berechnung der Nachhallzeit T für die Beurteilung der Hörsamkeit in Räumen
B3: Grundlage für eine gute Hörsamkeit ist das akustisch aufeinander abgestimmte Zusammenwirken von Raumgeometrie, - größe und -ausstattung sowie dem Gesamtstörschalldruckpegel (DIN 18041, Abschn. 4.2). | S3: Stand: Juli 2018
I7: zur Beurteilung der Raumsituation erforderliche Angaben: | J7: - beabsichtigte Raumnutzung
J8: - Raumgeometrie (Maße / Volumen V des leeren Raumes)
B9: Falls diese Angaben in den Unterlagen zur Baustellungnahme nicht vorliegen, sollten diese über das Bauordungsamt eingefordert werden. | J9: - Boden-, Wand- und Deckenoberflächen (mit Schallabsorptionseigenschaften)
J10: - voraussichtliche Raumbesetzung (Personen) und Raumobjekte
F11: Formulierungshilfen hierzu befinden sich unter: | G11: Nachforderungen | J11: - voraussichtlicher Störschalldruckpegel (Wasser/Abwasser, gebäudetechnische Anlagen)
B12: Rechnerische Bestimmung der Nachhallzeit T (nach DIN EN 12354-6:2003) | L12: Berechnung für
L13: Raumnutzung | P13: mit Button
L14: Sollwertermittlung und Vergleich mit Istwert (frequenzabhängig)
L15: Gruppenraum in Kindertages-einrichtung (auch in Pflege- und Seniorenheim), Unterrichts-, Seminar-, Besprechungs- sowie Tagungs-/ Konferenzraum
P16: Achtung: Der Sollwert für T ist für Räume in Bildungsstätten gemäß ASR A3.7 "Lärm" verpflichtend!
P20: Unterricht & Kommunikation
L22: Vorlesungsraum (Hörsaal), Gerichts-, Rats und Gemeindesaal, Versammlungsraum und Schulaula
P25: Sprache & Vortrag
L28: Musikraum | P28: Musik
B31: befinden sich unter: | D31: Daten | J31: Produkte | L31: Sport- und Schwimmhalle | P31: Sport

Sheet Unterricht & Kommunikation
A1: Berechnung der Nachhallzeit T in Sekunden mit Raumvolumen V in m³ (ASR A3.7 „Lärm“:2018):
A2: für Räume in Bildungsstätten, wie Gruppenraum in KiTa, Unterrichts-, Seminar-, Besprechungsraum sowie Tagungs-/Konferenzraum
B4: Raumvolumen V:
E5: Eingabe hier | L5: Eingabe hier
A6: entweder Berechnung mit: | D6: Raumtiefe in m: | F6: V = | G6: =IF(OR(E6="",E7="",E8=""),"?",E6*E7*E8) -> ? | H6: m³ | I6: oder direkte Eingabe: | K6: V = | M6: m³ | N6: für Berechnung verwendet: | P6: V = | Q6: =IF(L6>0,L6,G6) -> ? | R6: m³
D7: Raumbreite in m:
D8: Raumhöhe in m:
B10: Nachhallzeit T (Sollwert):
C11: für „Unterricht mit Personen ohne Bedürfnis nach erhöhter Sprachverständlichkeit“ (Nutzungsart A3) | K11: T = | L11: =IF($Q$6="?","?",0.32*LOG($Q$6)-0.17) -> ? | M11: s | N11: gilt für Räume mit 30 m³ ≤ V < 1000 m³
V13: =IF(AND(T11="",T15=""),"?",IF(T11="x",L11,L15)) -> ?
A15: vorläufig nur informativ: für Nutzung durch Personen mit Höreinschränkung oder bei fremdsprachlicher Nutzung (Nutzungsart A4) | K15: T = | L15: =IF($Q$6="?","?",0.26*LOG($Q$6)-0.14) -> ? | M15: s | N15: gilt für Räume mit 30 m³ ≤ V < 500 m³
A20: zur Frequenz- und Soll-/Istwert-Betrachtung siehe unten: | R20: andere Räume und weitere Informationen unter: | S20: Grundlagen und andere Räume
B22: Frequenz in Hz | C22: Toleranzbereich für T | E22: Toleranzbereich T für A3 | G22: Toleranzbereich T für A4 | I22: Status | J22: mögliche Eingabe tatsächlicher oder geschätzter Werte: | M22: Frequenz in Hz | N22: für Nachhallzeit T/s | P22: z. B. gemessene Werte zur Erfolgskontrolle, berechnete oder abge- schätzte Werte zur Ableitung von Vorgaben (Sollwert) für Stellungnahme Falls nur Oktavwerte (stark umrahmt) eingegeben werden, werden die Werte für die Terzmitten-frequenzen interpoliert.
C23: Min. T/TSoll | D23: Max. T/TSoll | E23: Tmin/s | F23: Tmax/s | G23: Tmin/s | H23: Tmax/s | N23: Mittelwert | O23: Standabw.
B24: 63 | C24: 0.5 | D24: 1.7 | E24: =IF($L$11="?","?",$L$11*$C24) -> ? | F24: =IF($L$11="?","?",$L$11*$D24) -> ? | G24: =IF($L$15="?","?",$L$15*$C24) -> ? | H24: =IF($L$15="?","?",$L$15*$D24) -> ? | I24: orientier. | M24: 63 | T24: =N24 -> 0 | U24: =O24 -> 0
B25: 80 | C25: =0.8-5/6*(0.8-0.5) -> 0.55 | D25: =1.2+5/6*(1.7-1.2) -> 1.616666667 | E25: =IF($L$11="?","?",$L$11*$C25) -> ? | F25: =IF($L$11="?","?",$L$11*$D25) -> ? | G25: =IF($L$15="?","?",$L$15*$C25) -> ? | H25: =IF($L$15="?","?",$L$15*$D25) -> ? | I25: orientier. | M25: 80 | T25: =IF(AND(N25="",N24="",N27>0,N30>0),N27-2/3*(N30-N27),IF(AND(N25="",N24>0,N27>0),N24+1/3*(N27-N24),N25)) -> 0 | U25: =IF(AND(O25="",O24="",O27>0,O30>0),O27-2/3*(O30-O27),IF(AND(O25="",O24>0,O27>0),O24+1/3*(O27-O24),O25)) -> 0
B26: 100 | C26: =0.8-4/6*(0.8-0.5) -> 0.6 | D26: =1.2+4/6*(1.7-1.2) -> 1.533333333 | E26: ? | F26: ? | G26: ? | H26: ? | I26: orientier. | M26: 100 | T26: =IF(AND(N26="",N24="",N27>0,N30>0),N27-1/3*(N30-N27),IF(AND(N26="",N24>0,N27>0),N24+2/3*(N27-N24),N26)) -> 0 | U26: =IF(AND(O26="",O24="",O27>0,O30>0),O27-1/3*(O30-O27),IF(AND(O26="",O24>0,O27>0),O24+2/3*(O27-O24),O26)) -> 0
B27: 125 | C27: =0.8-3/6*(0.8-0.5) -> 0.65 | D27: =1.2+3/6*(1.7-1.2) -> 1.45 | E27: ? | F27: ? | G27: ? | H27: ? | I27: normativ | M27: 125 | T27: =N27 -> 0 | U27: =O27 -> 0
B28: 160 | C28: =0.8-2/6*(0.8-0.5) -> 0.7 | D28: =1.2+2/6*(1.7-1.2) -> 1.366666667 | E28: ? | F28: ? | G28: ? | H28: ? | I28: normativ | J28: Falls hier nichts eingegeben wird, werden zur Berechnung im Diagramm unten als Mittelwert der Sollwert und die relative Streuung 0,5/√2π verwendet. | M28: 160 | T28: =IF(AND(N28="",N27>0,N30>0),N27+1/3*(N30-N27),N28) -> 0 | U28: =IF(AND(O28="",O27>0,O30>0),O27+1/3*(O30-O27),O28) -> 0
B29: 200 | C29: =0.8-1/6*(0.8-0.5) -> 0.75 | D29: =1.2+1/6*(1.7-1.2) -> 1.283333333 | E29: ? | F29: ? | G29: ? | H29: ? | I29: normativ | M29: 200 | T29: =IF(AND(N29="",N27>0,N30>0),N27+2/3*(N30-N27),N29) -> 0 | U29: =IF(AND(O29="",O27>0,O30>0),O27+2/3*(O30-O27),O29) -> 0
B30: 250 | C30: 0.8 | D30: 1.2 | E30: ? | F30: ? | G30: ? | H30: ? | I30: normativ | M30: 250 | T30: =N30 -> 0 | U30: =O30 -> 0
B31: 315 | C31: 0.8 | D31: 1.2 | E31: ? | F31: ? | G31: ? | H31: ? | I31: normativ | M31: 315 | T31: =IF(AND(N31="",N30>0,N33>0),N30+1/3*(N33-N30),N31) -> 0 | U31: =IF(AND(O31="",O30>0,O33>0),O30+1/3*(O33-O30),O31) -> 0
B32: 400 | C32: 0.8 | D32: 1.2 | E32: ? | F32: ? | G32: ? | H32: ? | I32: normativ | M32: 400 | T32: =IF(AND(N32="",N30>0,N33>0),N30+2/3*(N33-N30),N32) -> 0 | U32: =IF(AND(O32="",O30>0,O33>0),O30+2/3*(O33-O30),O32) -> 0
B33: 500 | C33: 0.8 | D33: 1.2 | E33: ? | F33: ? | G33: ? | H33: ? | I33: normativ | M33: 500 | T33: =N33 -> 0 | U33: =O33 -> 0
B34: 630 | C34: 0.8 | D34: 1.2 | E34: ? | F34: ? | G34: ? | H34: ? | I34: normativ | M34: 630 | T34: =IF(AND(N34="",N33>0,N36>0),N33+1/3*(N36-N33),N34) -> 0 | U34: =IF(AND(O34="",O33>0,O36>0),O33+1/3*(O36-O33),O34) -> 0
B35: 800 | C35: 0.8 | D35: 1.2 | E35: ? | F35: ? | G35: ? | H35: ? | I35: normativ | M35: 800 | T35: =IF(AND(N35="",N33>0,N36>0),N33+2/3*(N36-N33),N35) -> 0 | U35: =IF(AND(O35="",O33>0,O36>0),O33+2/3*(O36-O33),O35) -> 0
B36: 1000 | C36: 0.8 | D36: 1.2 | E36: ? | F36: ? | G36: ? | H36: ? | I36: normativ | M36: 1000 | T36: =N36 -> 0 | U36: =O36 -> 0
B37: 1250 | C37: 0.8 | D37: 1.2 | E37: ? | F37: ? | G37: ? | H37: ? | I37: normativ | M37: 1250 | T37: =IF(AND(N37="",N36>0,N39>0),N36+1/3*(N39-N36),N37) -> 0 | U37: =IF(AND(O37="",O36>0,O39>0),O36+1/3*(O39-O36),O37) -> 0
B38: 1600 | C38: 0.8 | D38: 1.2 | E38: ? | F38: ? | G38: ? | H38: ? | I38: normativ | M38: 1600 | P38: für Abschätzung hier zum Raumakustik-Rechner | T38: =IF(AND(N38="",N36>0,N39>0),N36+2/3*(N39-N36),N38) -> 0 | U38: =IF(AND(O38="",O36>0,O39>0),O36+2/3*(O39-O36),O38) -> 0
B39: 2000 | C39: 0.8 | D39: 1.2 | E39: ? | F39: ? | G39: ? | H39: ? | I39: normativ | M39: 2000 | T39: =N39 -> 0 | U39: =O39 -> 0
B40: 2500 | C40: =0.8-1/6*(0.8-0.5) -> 0.75 | D40: 1.2 | E40: ? | F40: ? | G40: ? | H40: ? | I40: normativ | M40: 2500 | T40: =IF(AND(N40="",N39>0,N42>0),N39+1/3*(N42-N39),N40) -> 0 | U40: =IF(AND(O40="",O39>0,O42>0),O39+1/3*(O42-O39),O40) -> 0
B41: 3150 | C41: =0.8-2/6*(0.8-0.5) -> 0.7 | D41: 1.2 | E41: ? | F41: ? | G41: ? | H41: ? | I41: normativ | J41: Siehe Diagramme unten! | M41: 3150 | P41: hier speziell für Unterrichtsräume | T41: =IF(AND(N41="",N39>0,N42>0),N39+2/3*(N42-N39),N41) -> 0 | U41: =IF(AND(O41="",O39>0,O42>0),O39+2/3*(O42-O39),O41) -> 0
B42: 4000 | C42: =0.8-3/6*(0.8-0.5) -> 0.65 | D42: 1.2 | E42: ? | F42: ? | G42: ? | H42: ? | I42: normativ | M42: 4000 | T42: =N42 -> 0 | U42: =O42 -> 0
B43: 5000 | C43: =0.8-4/6*(0.8-0.5) -> 0.6 | D43: 1.2 | E43: ? | F43: ? | G43: ? | H43: ? | I43: orientier. | M43: 5000 | T43: =IF(AND(N43="",N42>0,N39>0),N42+1/3*(N42-N39),N43) -> 0 | U43: =IF(AND(O43="",O42>0,O39>0),O42+1/3*(O42-O39),O43) -> 0
T45: =IF(T24=0,$L$11,T24) -> ? | U45: =IF(U24=0,T45*(1-0.5/SQRT(2*3.14159)),T45-U24) ->  | V45: =V66WENN(U24=0,T45*(1+0.5/SQRT(2*3.14159)),T45+U24) ->  | W45: =IF(T24=0,$L$15,T24) -> ? | X45: =IF(U24=0,W45*(1-0.5/SQRT(2*3.14159)),W45-U24) ->  | Y45: =IF(U24=0,W45*(1+0.5/SQRT(2*3.14159)),W45+U24) -> 
T46: ? | U46: =IF(U25=0,T46*(1-0.5/SQRT(2*3.14159)),T46-U25) ->  | V46: =IF(U25=0,T46*(1+0.5/SQRT(2*3.14159)),T46+U25) ->  | W46: ? | X46: =IF(U25=0,W46*(1-0.5/SQRT(2*3.14159)),W46-U25) ->  | Y46: =IF(U25=0,W46*(1+0.5/SQRT(2*3.14159)),W46+U25) -> 
T47: ? | W47: ?
T48: ? | W48: ?
T49: ? | W49: ?
T50: ? | W50: ?
T51: ? | W51: ?
T52: ? | W52: ?
T53: ? | W53: ?
T54: ? | W54: ?
T55: ? | W55: ?
T56: ? | W56: ?
T57: ? | W57: ?
T58: ? | W58: ?
T59: ? | W59: ?
T60: ? | W60: ?
T61: ? | W61: ?
T62: ? | W62: ?
T63: ? | W63: ?
T64: ? | W64: ?
T69: x

Sheet Sprache & Vortrag
T1: Berechnung der Nachhallzeit T in Sekunden mit Raumvolumen V in m³ (DIN 18041:2016-03):
A2: für Vorlesungsraum (Hörsaal), Gerichts-, Rats und Gemeindesaal, Versammlungsraum und Schulaula
B4: Raumvolumen V:
E5: Eingabe hier | L5: Eingabe hier
A6: entweder Berechnung mit: | D6: Raumtiefe in m: | F6: V = | G6: =IF(OR(E6="",E7="",E8=""),"?",E6*E7*E8) -> ? | H6: m³ | I6: oder direkte Eingabe: | K6: V = | M6: m³ | N6: für Berechnung verwendet: | P6: V = | Q6: =IF(L6>0,L6,G6) -> ? | R6: m³
D7: Raumbreite in m:
D8: Raumhöhe in m:
B10: Nachhallzeit T (Sollwert):
F11: für gewöhnliche Nutzung (Nutzungsart A2) | K11: T = | L11: =IF($Q$6="?","?",0.37*LOG($Q$6)-0.14) -> ? | M11: s | N11: gilt für Räume mit 50 m³ ≤ V < 5000 m³
V13: =IF(AND(T11="",T15=""),"?",IF(T11="x",L11,L15)) -> ?
C15: für Nutzung durch Personen mit Höreinschränkung oder bei fremdsprachlicher Nutzung (Nutzungsart A3) | K15: T = | L15: =IF($Q$6="?","?",0.32*LOG($Q$6)-0.17) -> ? | M15: s | N15: gilt für Räume mit 30 m³ ≤ V < 5000 m³
A20: zur Frequenz- und Soll-/Istwert-Betrachtung siehe unten: | R20: andere Räume und weitere Informationen unter: | S20: Grundlagen und andere Räume
B22: Frequenz in Hz | C22: Toleranzbereich für T | E22: Toleranzbereich T für A2 | G22: Toleranzbereich T für A3 | I22: Status | J22: mögliche Eingabe tatsächlicher oder geschätzter Werte: | M22: Frequenz in Hz | N22: für Nachhallzeit T/s | P22: z. B. gemessene Werte zur Erfolgskontrolle, berechnete oder abge- schätzte Werte zur Ableitung von Vorgaben (Sollwert) für Stellungnahme Falls nur Oktavwerte (stark umrahmt) eingegeben werden, werden die Werte für die Terzmitten-frequenzen interpoliert.
C23: Min. T/TSoll | D23: Max. T/TSoll | E23: Tmin/s | F23: Tmax/s | G23: Tmin/s | H23: Tmax/s | N23: Mittelwert | O23: Standabw.
B24: 63 | C24: 0.5 | D24: 1.7 | E24: =IF($L$11="?","?",$L$11*$C24) -> ? | F24: =IF($L$11="?","?",$L$11*$D24) -> ? | G24: =IF($L$15="?","?",$L$15*$C24) -> ? | H24: =IF($L$15="?","?",$L$15*$D24) -> ? | I24: orientier. | M24: 63 | T24: =N24 -> 0 | U24: =O24 -> 0
B25: 80 | C25: =0.8-5/6*(0.8-0.5) -> 0.55 | D25: =1.2+5/6*(1.7-1.2) -> 1.616666667 | E25: =IF($L$11="?","?",$L$11*$C25) -> ? | F25: =IF($L$11="?","?",$L$11*$D25) -> ? | G25: =IF($L$15="?","?",$L$15*$C25) -> ? | H25: =IF($L$15="?","?",$L$15*$D25) -> ? | I25: orientier. | M25: 80 | T25: =IF(AND(N25="",N24="",N27>0,N30>0),N27-2/3*(N30-N27),IF(AND(N25="",N24>0,N27>0),N24+1/3*(N27-N24),N25)) -> 0 | U25: =IF(AND(O25="",O24="",O27>0,O30>0),O27-2/3*(O30-O27),IF(AND(O25="",O24>0,O27>0),O24+1/3*(O27-O24),O25)) -> 0
B26: 100 | C26: =0.8-4/6*(0.8-0.5) -> 0.6 | D26: =1.2+4/6*(1.7-1.2) -> 1.533333333 | E26: ? | F26: ? | G26: ? | H26: ? | I26: orientier. | M26: 100 | T26: =IF(AND(N26="",N24="",N27>0,N30>0),N27-1/3*(N30-N27),IF(AND(N26="",N24>0,N27>0),N24+2/3*(N27-N24),N26)) -> 0 | U26: =IF(AND(O26="",O24="",O27>0,O30>0),O27-1/3*(O30-O27),IF(AND(O26="",O24>0,O27>0),O24+2/3*(O27-O24),O26)) -> 0
B27: 125 | C27: =0.8-3/6*(0.8-0.5) -> 0.65 | D27: =1.2+3/6*(1.7-1.2) -> 1.45 | E27: ? | F27: ? | G27: ? | H27: ? | I27: normativ | M27: 125 | T27: =N27 -> 0 | U27: =O27 -> 0
B28: 160 | C28: =0.8-2/6*(0.8-0.5) -> 0.7 | D28: =1.2+2/6*(1.7-1.2) -> 1.366666667 | E28: ? | F28: ? | G28: ? | H28: ? | I28: normativ | J28: Falls hier nichts eingegeben wird, werden zur Berechnung im Diagramm unten als Mittelwert der Sollwert und die relative Streuung 0,5/√2π verwendet. | M28: 160 | T28: =IF(AND(N28="",N27>0,N30>0),N27+1/3*(N30-N27),N28) -> 0 | U28: =IF(AND(O28="",O27>0,O30>0),O27+1/3*(O30-O27),O28) -> 0
B29: 200 | C29: =0.8-1/6*(0.8-0.5) -> 0.75 | D29: =1.2+1/6*(1.7-1.2) -> 1.283333333 | E29: ? | F29: ? | G29: ? | H29: ? | I29: normativ | M29: 200 | T29: =IF(AND(N29="",N27>0,N30>0),N27+2/3*(N30-N27),N29) -> 0 | U29: =IF(AND(O29="",O27>0,O30>0),O27+2/3*(O30-O27),O29) -> 0
B30: 250 | C30: 0.8 | D30: 1.2 | E30: ? | F30: ? | G30: ? | H30: ? | I30: normativ | M30: 250 | T30: =N30 -> 0 | U30: =O30 -> 0
B31: 315 | C31: 0.8 | D31: 1.2 | E31: ? | F31: ? | G31: ? | H31: ? | I31: normativ | M31: 315 | T31: =IF(AND(N31="",N30>0,N33>0),N30+1/3*(N33-N30),N31) -> 0 | U31: =IF(AND(O31="",O30>0,O33>0),O30+1/3*(O33-O30),O31) -> 0
B32: 400 | C32: 0.8 | D32: 1.2 | E32: ? | F32: ? | G32: ? | H32: ? | I32: normativ | M32: 400 | T32: =IF(AND(N32="",N30>0,N33>0),N30+2/3*(N33-N30),N32) -> 0 | U32: =IF(AND(O32="",O30>0,O33>0),O30+2/3*(O33-O30),O32) -> 0
B33: 500 | C33: 0.8 | D33: 1.2 | E33: ? | F33: ? | G33: ? | H33: ? | I33: normativ | M33: 500 | T33: =N33 -> 0 | U33: =O33 -> 0
B34: 630 | C34: 0.8 | D34: 1.2 | E34: ? | F34: ? | G34: ? | H34: ? | I34: normativ | M34: 630 | T34: =IF(AND(N34="",N33>0,N36>0),N33+1/3*(N36-N33),N34) -> 0 | U34: =IF(AND(O34="",O33>0,O36>0),O33+1/3*(O36-O33),O34) -> 0
B35: 800 | C35: 0.8 | D35: 1.2 | E35: ? | F35: ? | G35: ? | H35: ? | I35: normativ | M35: 800 | T35: =IF(AND(N35="",N33>0,N36>0),N33+2/3*(N36-N33),N35) -> 0 | U35: =IF(AND(O35="",O33>0,O36>0),O33+2/3*(O36-O33),O35) -> 0
B36: 1000 | C36: 0.8 | D36: 1.2 | E36: ? | F36: ? | G36: ? | H36: ? | I36: normativ | M36: 1000 | T36: =N36 -> 0 | U36: =O36 -> 0
B37: 1250 | C37: 0.8 | D37: 1.2 | E37: ? | F37: ? | G37: ? | H37: ? | I37: normativ | M37: 1250 | T37: =IF(AND(N37="",N36>0,N39>0),N36+1/3*(N39-N36),N37) -> 0 | U37: =IF(AND(O37="",O36>0,O39>0),O36+1/3*(O39-O36),O37) -> 0
B38: 1600 | C38: 0.8 | D38: 1.2 | E38: ? | F38: ? | G38: ? | H38: ? | I38: normativ | M38: 1600 | T38: =IF(AND(N38="",N36>0,N39>0),N36+2/3*(N39-N36),N38) -> 0 | U38: =IF(AND(O38="",O36>0,O39>0),O36+2/3*(O39-O36),O38) -> 0
B39: 2000 | C39: 0.8 | D39: 1.2 | E39: ? | F39: ? | G39: ? | H39: ? | I39: normativ | M39: 2000 | T39: =N39 -> 0 | U39: =O39 -> 0
B40: 2500 | C40: =0.8-1/6*(0.8-0.5) -> 0.75 | D40: 1.2 | E40: ? | F40: ? | G40: ? | H40: ? | I40: normativ | M40: 2500 | T40: =IF(AND(N40="",N39>0,N42>0),N39+1/3*(N42-N39),N40) -> 0 | U40: =IF(AND(O40="",O39>0,O42>0),O39+1/3*(O42-O39),O40) -> 0
B41: 3150 | C41: =0.8-2/6*(0.8-0.5) -> 0.7 | D41: 1.2 | E41: ? | F41: ? | G41: ? | H41: ? | I41: normativ | J41: Siehe Diagramme unten! | M41: 3150 | P41: für Abschätzung hier zum Raumakustik-Rechner | T41: =IF(AND(N41="",N39>0,N42>0),N39+2/3*(N42-N39),N41) -> 0 | U41: =IF(AND(O41="",O39>0,O42>0),O39+2/3*(O42-O39),O41) -> 0
B42: 4000 | C42: =0.8-3/6*(0.8-0.5) -> 0.65 | D42: 1.2 | E42: ? | F42: ? | G42: ? | H42: ? | I42: normativ | M42: 4000 | T42: =N42 -> 0 | U42: =O42 -> 0
B43: 5000 | C43: =0.8-4/6*(0.8-0.5) -> 0.6 | D43: 1.2 | E43: ? | F43: ? | G43: ? | H43: ? | I43: orientier. | M43: 5000 | T43: =IF(AND(N43="",N42>0,N39>0),N42+1/3*(N42-N39),N43) -> 0 | U43: =IF(AND(O43="",O42>0,O39>0),O42+1/3*(O42-O39),O43) -> 0
T45: =IF(T24=0,$L$11,T24) -> ? | U45: =IF(U24=0,T45*(1-0.5/SQRT(2*3.14159)),T45-U24) ->  | V45: =IF(U24=0,T45*(1+0.5/SQRT(2*3.14159)),T45+U24) ->  | W45: =IF(T24=0,$L$15,T24) -> ? | X45: =IF(U24=0,W45*(1-0.5/SQRT(2*3.14159)),W45-U24) ->  | Y45: =IF(U24=0,W45*(1+0.5/SQRT(2*3.14159)),W45+U24) -> 
T46: ? | U46: =IF(U25=0,T46*(1-0.5/SQRT(2*3.14159)),T46-U25) ->  | V46: =IF(U25=0,T46*(1+0.5/SQRT(2*3.14159)),T46+U25) ->  | W46: ? | X46: =IF(U25=0,W46*(1-0.5/SQRT(2*3.14159)),W46-U25) ->  | Y46: =IF(U25=0,W46*(1+0.5/SQRT(2*3.14159)),W46+U25) -> 
T47: ? | W47: ?
T48: ? | W48: ?
T49: ? | W49: ?
T50: ? | W50: ?
T51: ? | W51: ?
T52: ? | W52: ?
T53: ? | W53: ?
T54: ? | W54: ?
T55: ? | W55: ?
T56: ? | W56: ?
T57: ? | W57: ?
T58: ? | W58: ?
T59: ? | W59: ?
T60: ? | W60: ?
T61: ? | W61: ?
T62: ? | W62: ?
T63: ? | W63: ?
T64: ? | W64: ?

Sheet Musik
T1: Berechnung der Nachhallzeit T in Sekunden mit Raumvolumen V in m³ (DIN 18041:2016-03):
A2: für Musikraum
B4: Raumvolumen V:
E5: Eingabe hier | L5: Eingabe hier
A6: entweder Berechnung mit: | D6: Raumtiefe in m: | F6: V = | G6: =IF(OR(E6="",E7="",E8=""),"?",E6*E7*E8) -> ? | H6: m³ | I6: oder direkte Eingabe: | K6: V = | M6: m³ | N6: für Berechnung verwendet: | P6: V = | Q6: =IF(L6>0,L6,G6) -> ? | R6: m³
D7: Raumbreite in m:
D8: Raumhöhe in m:
B10: Nachhallzeit T Sollwert):
F11: Nutzungsart A1 | K11: T = | L11: =IF($Q$6="?","?",0.45*LOG($Q$6)+0.17) -> ? | M11: s | N11: gilt für Räume mit 30 m³ ≤ V < 1000 m³
S15: Grundlagen und andere Räume
A16: zur Frequenz- und Soll-/Istwert-Betrachtung siehe unten: | R16: andere Räume und weitere Informationen unter:
V17: =IF(NOT(Q6="?"),1,0) -> 0
B18: Frequenz in Hz | C18: Toleranzbereich für T | E18: Toleranzbereich T | G18: Status | J18: mögliche Eingabe tatsächlicher oder geschätzter Werte: | M18: Frequenz in Hz | N18: für Nachhallzeit T/s | P18: z. B. gemessene Werte zur Erfolgskontrolle, berechnete oder abge- schätzte Werte zur Ableitung von Vorgaben (Sollwert) für Stellungnahme Falls nur Oktavwerte (stark umrahmt) eingegeben werden, werden die Werte für die Terzmitten-frequenzen interpoliert.
C19: Min. T/TSoll | D19: Max. T/TSoll | E19: Tmin/s | F19: Tmax/s | N19: Mittelwert | O19: Standabw.
B20: 63 | C20: 0.5 | D20: 1.7 | E20: =IF($L$11="?","?",$L$11*$C20) -> ? | F20: =IF($L$11="?","?",$L$11*$D20) -> ? | G20: orientier. | M20: 63 | T20: =N20 -> 0 | U20: =O20 -> 0
B21: 80 | C21: =0.8-5/6*(0.8-0.5) -> 0.55 | D21: =1.2+5/6*(1.7-1.2) -> 1.616666667 | E21: =IF($L$11="?","?",$L$11*$C21) -> ? | F21: =IF($L$11="?","?",$L$11*$D21) -> ? | G21: orientier. | M21: 80 | T21: =IF(AND(N21="",N20="",N23>0,N26>0),N23-2/3*(N26-N23),IF(AND(N21="",N20>0,N23>0),N20+1/3*(N23-N20),N21)) -> 0 | U21: =IF(AND(O21="",O20="",O23>0,O26>0),O23-2/3*(O26-O23),IF(AND(O21="",O20>0,O23>0),O20+1/3*(O23-O20),O21)) -> 0
B22: 100 | C22: =0.8-4/6*(0.8-0.5) -> 0.6 | D22: =1.2+4/6*(1.7-1.2) -> 1.533333333 | E22: ? | F22: ? | G22: orientier. | M22: 100 | T22: =IF(AND(N22="",N20="",N23>0,N26>0),N23-1/3*(N26-N23),IF(AND(N22="",N20>0,N23>0),N20+2/3*(N23-N20),N22)) -> 0 | U22: =IF(AND(O22="",O20="",O23>0,O26>0),O23-1/3*(O26-O23),IF(AND(O22="",O20>0,O23>0),O20+2/3*(O23-O20),O22)) -> 0
B23: 125 | C23: =0.8-3/6*(0.8-0.5) -> 0.65 | D23: =1.2+3/6*(1.7-1.2) -> 1.45 | E23: ? | F23: ? | G23: normativ | M23: 125 | T23: =N23 -> 0 | U23: =O23 -> 0
B24: 160 | C24: =0.8-2/6*(0.8-0.5) -> 0.7 | D24: =1.2+2/6*(1.7-1.2) -> 1.366666667 | E24: ? | F24: ? | G24: normativ | J24: Falls hier nichts eingegeben wird, werden zur Berechnung im Diagramm unten als Mittelwert der Sollwert und die relative Streuung 0,5/√2π verwendet. | M24: 160 | T24: =IF(AND(N24="",N23>0,N26>0),N23+1/3*(N26-N23),N24) -> 0 | U24: =IF(AND(O24="",O23>0,O26>0),O23+1/3*(O26-O23),O24) -> 0
B25: 200 | C25: =0.8-1/6*(0.8-0.5) -> 0.75 | D25: =1.2+1/6*(1.7-1.2) -> 1.283333333 | E25: ? | F25: ? | G25: normativ | M25: 200 | T25: =IF(AND(N25="",N23>0,N26>0),N23+2/3*(N26-N23),N25) -> 0 | U25: =IF(AND(O25="",O23>0,O26>0),O23+2/3*(O26-O23),O25) -> 0
B26: 250 | C26: 0.8 | D26: 1.2 | E26: ? | F26: ? | G26: normativ | M26: 250 | T26: =N26 -> 0 | U26: =O26 -> 0
B27: 315 | C27: 0.8 | D27: 1.2 | E27: ? | F27: ? | G27: normativ | M27: 315 | T27: =IF(AND(N27="",N26>0,N29>0),N26+1/3*(N29-N26),N27) -> 0 | U27: =IF(AND(O27="",O26>0,O29>0),O26+1/3*(O29-O26),O27) -> 0
B28: 400 | C28: 0.8 | D28: 1.2 | E28: ? | F28: ? | G28: normativ | M28: 400 | T28: =IF(AND(N28="",N26>0,N29>0),N26+2/3*(N29-N26),N28) -> 0 | U28: =IF(AND(O28="",O26>0,O29>0),O26+2/3*(O29-O26),O28) -> 0
B29: 500 | C29: 0.8 | D29: 1.2 | E29: ? | F29: ? | G29: normativ | M29: 500 | T29: =N29 -> 0 | U29: =O29 -> 0
B30: 630 | C30: 0.8 | D30: 1.2 | E30: ? | F30: ? | G30: normativ | M30: 630 | T30: =IF(AND(N30="",N29>0,N32>0),N29+1/3*(N32-N29),N30) -> 0 | U30: =IF(AND(O30="",O29>0,O32>0),O29+1/3*(O32-O29),O30) -> 0
B31: 800 | C31: 0.8 | D31: 1.2 | E31: ? | F31: ? | G31: normativ | M31: 800 | T31: =IF(AND(N31="",N29>0,N32>0),N29+2/3*(N32-N29),N31) -> 0 | U31: =IF(AND(O31="",O29>0,O32>0),O29+2/3*(O32-O29),O31) -> 0
B32: 1000 | C32: 0.8 | D32: 1.2 | E32: ? | F32: ? | G32: normativ | M32: 1000 | T32: =N32 -> 0 | U32: =O32 -> 0
B33: 1250 | C33: 0.8 | D33: 1.2 | E33: ? | F33: ? | G33: normativ | M33: 1250 | T33: =IF(AND(N33="",N32>0,N35>0),N32+1/3*(N35-N32),N33) -> 0 | U33: =IF(AND(O33="",O32>0,O35>0),O32+1/3*(O35-O32),O33) -> 0
B34: 1600 | C34: 0.8 | D34: 1.2 | E34: ? | F34: ? | G34: normativ | M34: 1600 | T34: =IF(AND(N34="",N32>0,N35>0),N32+2/3*(N35-N32),N34) -> 0 | U34: =IF(AND(O34="",O32>0,O35>0),O32+2/3*(O35-O32),O34) -> 0
B35: 2000 | C35: 0.8 | D35: 1.2 | E35: ? | F35: ? | G35: normativ | M35: 2000 | T35: =N35 -> 0 | U35: =O35 -> 0
B36: 2500 | C36: =0.8-1/6*(0.8-0.5) -> 0.75 | D36: 1.2 | E36: ? | F36: ? | G36: normativ | M36: 2500 | T36: =IF(AND(N36="",N35>0,N38>0),N35+1/3*(N38-N35),N36) -> 0 | U36: =IF(AND(O36="",O35>0,O38>0),O35+1/3*(O38-O35),O36) -> 0
B37: 3150 | C37: =0.8-2/6*(0.8-0.5) -> 0.7 | D37: 1.2 | E37: ? | F37: ? | G37: normativ | J37: Siehe Diagramm unten! | M37: 3150 | P37: für Abschätzung hier zum Raumakustik-Rechner | T37: =IF(AND(N37="",N35>0,N38>0),N35+2/3*(N38-N35),N37) -> 0 | U37: =IF(AND(O37="",O35>0,O38>0),O35+2/3*(O38-O35),O37) -> 0
B38: 4000 | C38: =0.8-3/6*(0.8-0.5) -> 0.65 | D38: 1.2 | E38: ? | F38: ? | G38: normativ | M38: 4000 | T38: =N38 -> 0 | U38: =O38 -> 0
B39: 5000 | C39: =0.8-4/6*(0.8-0.5) -> 0.6 | D39: 1.2 | E39: ? | F39: ? | G39: orientier. | M39: 5000 | T39: =IF(AND(N39="",N38>0,N35>0),N38+1/3*(N38-N35),N39) -> 0 | U39: =IF(AND(O39="",O38>0,O35>0),O38+1/3*(O38-O35),O39) -> 0
S42: =IF(T20=0,$L$11,T20) -> ? | T42: =IF(U20=0,S42*(1-0.5/SQRT(2*3.14159)),S42-U20) ->  | U42: =IF(U20=0,S42*(1+0.5/SQRT(2*3.14159)),S42+U20) -> 
S43: =IF(T21=0,$L$11,T21) -> ? | T43: =IF(U21=0,S43*(1-0.5/SQRT(2*3.14159)),S43-U21) ->  | U43: =IF(U21=0,S43*(1+0.5/SQRT(2*3.14159)),S43+U21) -> 
S44: ?
S45: ?
S46: ?
S47: ?
S48: ?
S49: ?
S50: ?
S51: ?
S52: ?
S53: ?
S54: ?
S55: ?
S56: ?
S57: ?
S58: ?
S59: ?
S60: ?
S61: ?

Sheet Sport
T1: Berechnung der Nachhallzeit T in Sekunden mit Raumvolumen V in m³ (DIN 18041:2016-03):
A2: für Sport- und Schwimmhalle
B4: Raumvolumen V:
E5: Eingabe hier | L5: Eingabe hier
A6: entweder Berechnung mit: | D6: Raumtiefe in m: | F6: V = | G6: =IF(OR(E6="",E7="",E8=""),"?",E6*E7*E8) -> ? | H6: m³ | I6: oder direkte Eingabe: | K6: V = | M6: m³ | N6: für Berechnung verwendet: | P6: V = | Q6: =IF(L6>0,L6,G6) -> ? | R6: m³
D7: Raumbreite in m:
D8: Raumhöhe in m:
B10: Nachhallzeit T (Sollwert):
F11: Nutzungsart A5 | K11: T = | L11: =IF($Q$6="?","?",IF($Q$6>=10000,2,0.75*LOG($Q$6)-1)) -> ? | M11: s | N11: gilt für Räume mit V ≥ 200 m³
V13: =L11 -> ?
S16: Grundlagen und andere Räume
A17: zur Frequenz- und Soll-/Istwert-Betrachtung siehe unten: | R17: andere Räume und weitere Informationen unter:
B19: Frequenz in Hz | C19: Toleranzbereich für T | E19: Toleranzbereich T | G19: Status | J19: mögliche Eingabe tatsächlicher oder geschätzter Werte: | M19: Frequenz in Hz | N19: für Nachhallzeit T/s | P19: z. B. gemessene Werte zur Erfolgskontrolle, berechnete oder abge- schätzte Werte zur Ableitung von Vorgaben (Sollwert) für Stellungnahme Falls nur Oktavwerte (stark umrahmt) eingegeben werden, werden die Werte für die Terzmitten-frequenzen interpoliert.
C20: Min. T/TSoll | D20: Max. T/TSoll | E20: Tmin/s | F20: Tmax/s | N20: Mittelwert | O20: Standabw.
M21: 63 | T21: =N21 -> 0 | U21: =O21 -> 0
M22: 80 | T22: =IF(AND(N22="",N21="",N24>0,N27>0),N24-2/3*(N27-N24),IF(AND(N22="",N21>0,N24>0),N21+1/3*(N24-N21),N22)) -> 0 | U22: =IF(AND(O22="",O21="",O24>0,O27>0),O24-2/3*(O27-O24),IF(AND(O22="",O21>0,O24>0),O21+1/3*(O24-O21),O22)) -> 0
M23: 100 | T23: =IF(AND(N23="",N21="",N24>0,N27>0),N24-1/3*(N27-N24),IF(AND(N23="",N21>0,N24>0),N21+2/3*(N24-N21),N23)) -> 0 | U23: =IF(AND(O23="",O21="",O24>0,O27>0),O24-1/3*(O27-O24),IF(AND(O23="",O21>0,O24>0),O21+2/3*(O24-O21),O23)) -> 0
M24: 125 | T24: =N24 -> 0 | U24: =O24 -> 0
J25: Falls hier nichts eingegeben wird, werden zur Berechnung im Diagramm unten als Mittelwert der Sollwert und die relative Streuung 0,5/√2π verwendet. | M25: 160 | T25: =IF(AND(N25="",N24>0,N27>0),N24+1/3*(N27-N24),N25) -> 0 | U25: =IF(AND(O25="",O24>0,O27>0),O24+1/3*(O27-O24),O25) -> 0
M26: 200 | T26: =IF(AND(N26="",N24>0,N27>0),N24+2/3*(N27-N24),N26) -> 0 | U26: =IF(AND(O26="",O24>0,O27>0),O24+2/3*(O27-O24),O26) -> 0
B27: 250 | C27: 0.8 | D27: 1.2 | E27: =IF($L$11="?","?",$L$11*$C27) -> ? | F27: =IF($L$11="?","?",$L$11*$D27) -> ? | G27: normativ | M27: 250 | T27: =N27 -> 0 | U27: =O27 -> 0
B28: 315 | C28: 0.8 | D28: 1.2 | E28: ? | F28: ? | G28: normativ | M28: 315 | T28: =IF(AND(N28="",N27>0,N30>0),N27+1/3*(N30-N27),N28) -> 0 | U28: =IF(AND(O28="",O27>0,O30>0),O27+1/3*(O30-O27),O28) -> 0
B29: 400 | C29: 0.8 | D29: 1.2 | E29: ? | F29: ? | G29: normativ | M29: 400 | T29: =IF(AND(N29="",N27>0,N30>0),N27+2/3*(N30-N27),N29) -> 0 | U29: =IF(AND(O29="",O27>0,O30>0),O27+2/3*(O30-O27),O29) -> 0
B30: 500 | C30: 0.8 | D30: 1.2 | E30: ? | F30: ? | G30: normativ | M30: 500 | T30: =N30 -> 0 | U30: =O30 -> 0
B31: 630 | C31: 0.8 | D31: 1.2 | E31: ? | F31: ? | G31: normativ | M31: 630 | T31: =IF(AND(N31="",N30>0,N33>0),N30+1/3*(N33-N30),N31) -> 0 | U31: =IF(AND(O31="",O30>0,O33>0),O30+1/3*(O33-O30),O31) -> 0
B32: 800 | C32: 0.8 | D32: 1.2 | E32: ? | F32: ? | G32: normativ | M32: 800 | T32: =IF(AND(N32="",N30>0,N33>0),N30+2/3*(N33-N30),N32) -> 0 | U32: =IF(AND(O32="",O30>0,O33>0),O30+2/3*(O33-O30),O32) -> 0
B33: 1000 | C33: 0.8 | D33: 1.2 | E33: ? | F33: ? | G33: normativ | M33: 1000 | T33: =N33 -> 0 | U33: =O33 -> 0
B34: 1250 | C34: 0.8 | D34: 1.2 | E34: ? | F34: ? | G34: normativ | M34: 1250 | T34: =IF(AND(N34="",N33>0,N36>0),N33+1/3*(N36-N33),N34) -> 0 | U34: =IF(AND(O34="",O33>0,O36>0),O33+1/3*(O36-O33),O34) -> 0
B35: 1600 | C35: 0.8 | D35: 1.2 | E35: ? | F35: ? | G35: normativ | M35: 1600 | T35: =IF(AND(N35="",N33>0,N36>0),N33+2/3*(N36-N33),N35) -> 0 | U35: =IF(AND(O35="",O33>0,O36>0),O33+2/3*(O36-O33),O35) -> 0
B36: 2000 | C36: 0.8 | D36: 1.2 | E36: ? | F36: ? | G36: normativ | M36: 2000 | T36: =N36 -> 0 | U36: =O36 -> 0
M37: 2500 | T37: =IF(AND(N37="",N36>0,N39>0),N36+1/3*(N39-N36),N37) -> 0 | U37: =IF(AND(O37="",O36>0,O39>0),O36+1/3*(O39-O36),O37) -> 0
J38: Siehe Diagramm unten! | M38: 3150 | P38: für Abschätzung hier zum Raumakustik-Rechner | T38: =IF(AND(N38="",N36>0,N39>0),N36+2/3*(N39-N36),N38) -> 0 | U38: =IF(AND(O38="",O36>0,O39>0),O36+2/3*(O39-O36),O38) -> 0
M39: 4000 | T39: =N39 -> 0 | U39: =O39 -> 0
M40: 5000 | T40: =IF(AND(N40="",N39>0,N36>0),N39+1/3*(N39-N36),N40) -> 0 | U40: =IF(AND(O40="",O39>0,O36>0),O39+1/3*(O39-O36),O40) -> 0
R42: =IF($Q$6="?",0,IF($Q$6<10000,$L$11,#REF!)) -> 0 | S42: =IF(T21=0,$L$11,T21) -> ? | T42: =IF(U21=0,S42*(1-0.5/SQRT(2*3.14159)),S42-U21) ->  | U42: =IF(U21=0,S42*(1+0.5/SQRT(2*3.14159)),S42+U21) -> 
R43: =IF($Q$6="?",0,IF($Q$6<10000,$L$11,#REF!)) -> 0 | S43: =IF(T22=0,$L$11,T22) -> ? | T43: =IF(U22=0,S43*(1-0.5/SQRT(2*3.14159)),S43-U22) ->  | U43: =IF(U22=0,S43*(1+0.5/SQRT(2*3.14159)),S43+U22) -> 
S44: ?
S45: ?
S46: ?
R47: =IF($Q$6="?",0,IF($Q$6<10000,$L$11,#REF!)) -> 0 | S47: ?
R48: =IF($Q$6="?",0,IF($Q$6<10000,$L$11,#REF!)) -> 0 | S48: ?
R49: =IF($Q$6="?",0,IF($Q$6<10000,$L$11,#REF!)) -> 0 | S49: ?
R50: =IF($Q$6="?",0,IF($Q$6<10000,$L$11,#REF!)) -> 0 | S50: ?
R51: =IF($Q$6="?",0,IF($Q$6<10000,$L$11,#REF!)) -> 0 | S51: ?
R52: =IF($Q$6="?",0,IF($Q$6<10000,$L$11,#REF!)) -> 0 | S52: ?
R53: =IF($Q$6="?",0,IF($Q$6<10000,$L$11,#REF!)) -> 0 | S53: ?
R54: =IF($Q$6="?",0,IF($Q$6<10000,$L$11,#REF!)) -> 0 | S54: ?
R55: =IF($Q$6="?",0,IF($Q$6<10000,$L$11,#REF!)) -> 0 | S55: ?
R56: =IF($Q$6="?",0,IF($Q$6<10000,$L$11,#REF!)) -> 0 | S56: ?
R57: =IF($Q$6="?",0,IF($Q$6<10000,$L$11,#REF!)) -> 0 | S57: ?
R58: =IF($Q$6="?",0,IF($Q$6<10000,$L$11,#REF!)) -> 0 | S58: ?
R59: =IF($Q$6="?",0,IF($Q$6<10000,$L$11,#REF!)) -> 0 | S59: ?
R60: =IF($Q$6="?",0,IF($Q$6<10000,$L$11,#REF!)) -> 0 | S60: ?
R61: =IF($Q$6="?",0,IF($Q$6<10000,$L$11,#REF!)) -> 0 | S61: ?

Sheet Daten
P1: Ausgewählte Absorptions- & Dämpfungsangaben zur Berechnung der Nachhallzeit in Räumen | Q1: zurück zu Grundlagen
A3: aus EN 12354-6:2003 nach EN ISO 354 gemessene Absorptionsgrade üblicher Bauteiloberflächen (typische Mindestwerte) | G3: aus EN 12354-6:2003 nach EN ISO 354 gemessene äquivalente Absorptions- flächen einiger üblicher Objekte und Objektanordnungen (typische Werte) | M3: aus DIN 18041:2016-03 Beispiele für Schallabsorptionsgrad α für eine frequenzabhängige Dimensionierung
A26: aus EN 12354-6:2003 Schallleistungs-Dämpfungskoeffizient in Luft, m, in Oktavbändern in Abhängigkeit von Temperatur und Luftfeuchte
G31: aus DIN 18041:2016-03 zusätzliche Schallabsorptionsflächen durch Personen

Sheet Nachforderungen
L1: Formulierungshilfen für Nachforderungen beim Bauordnungsamt | N1: zurück zu Grundlagen
A2: Der komplette Text kann jeweils durch Anklicken der betreffenden Zelle mit Kopieren & Einfügen - dabei nur den Text übernehmen - z. B. in ein Word-Dokument eingefügt werden.
B4: Bauordnungsamt - Kopf einschließlich Arbeitsschutzrechtliche Stellungnahme zum Bauantrag Az:…. - Bauvorhaben… - Antragsteller… Die Überprüfung der eingereichten Bauunterlagen hat ergeben, dass zusätzliche Angaben zur Bewertung der raumakustischen Bedingungen für die Räume ….. erforderlich sind. Zur Klärung erfolgte am …….. eine direkte Abstimmung mit Vertretern der bauantragstellende Seite. Die Stellungnahme zum Bauvorhaben geht Ihnen nach Vorliegen aller Angaben voraussichtlich bis zum ……. zu. Im Auftrag | J4: Bauordnungsamt - Kopf einschließlich Arbeitsschutzrechtliche Stellungnahme zum Bauantrag Az:…. - Bauvorhaben… - Antragsteller… Die Überprüfung der eingereichten Bauunterlagen hat ergeben, dass folgende Angaben zur Beurteilung der akustischen Eigenschaften der Räume …….. zusätzlich erforderlich sind: - Raumnutzung (Unterrichtsfach, Altersklasse, Anzahl der Schüler/ Kinder, Besonderheiten z.B.: sprachlicher Art) - Gestaltung der Raumumschließungsflächen (Material- Wände, Decke) - Besonderheiten zur Raumausstattung (vorgesehenes Mobiliar, Regale, verkleidete Wandflächen …) Bitte veranlassen Sie dahingehend die Ergänzung der Antragsunterlagen. Im Auftrag
